{"text_format":"1","workbook":"xlsx","n_sheets":13,"sheets":["Dashboard","MSHEETS","FORMULARIOS","COTIZACION","REGISTRO COTIZACIONES","DETALLE COTIZACIONES","PRODUCTOS","CLIENTES","SEGUIMIENTO","Parámetros","DATOS_GENERALES","UBICACIONES","Interfaz"],"not_rendered":{"charts":0,"images":16,"macros":1,"external_links":0,"defined_names":10,"comments":0,"pivot_tables":0},"unopened":[],"bounds":{"document_bytes":16777216,"sheet_cells":100000,"rows_first":2000,"rows_last":500,"rows_between":2000,"halvings":0,"cell_chars":16384,"cell_head_chars":4096},"cells_cut":0,"cells_raw":0,"read":"whole","date_system":"1900"}

{"sheet":"Dashboard","index":0,"n_rows":26,"n_cols":11,"rows_kept":26,"cut":false,"hidden":true,"merged":[]}
[]
[]
[]
[]
[null,"Regimen Laboral MYPE ",null,null,null,null,null,"BI"]
[null,"Calculadora",null,null,null,"Total cotizado",34500,{"$f":"G6/1.18","v":29237.288135593222}]
[null,"Sueldo",1500,{"$f":"C7","v":1500}]
[null,"Gratificaciones:",0.16669999999999999,0,null,"Personal:","Cantidad:","Costo Real Mensual:","Costo Bruto","Total Costo Real Mensual:","Total Costo Bruto"]
[null,"CTS:",8.3299999999999999E-2,0,null,"Administrador",1,1569.9749999999999,1500,{"$f":"G9*H9","v":1569.9749999999999},{"$f":"G9*I9","v":1500}]
[null,"Vacaciones:",{"$f":"8.33%/2","v":4.165E-2},{"$f":"$C$7*C10","v":62.475000000000001},null,"Personal de Vigilancia",6,1569.9749999999999,1500,{"$f":"G10*H10","v":9419.8499999999985},{"$f":"G10*I10","v":9000}]
[null,"EsSalud/SIS:",0.09,15,null,"Personal de Vigilancia de Descanso",2,1569.9749999999999,1500,3139.95,3000]
[null,null,"Costo Real",{"$f":"SUM(D7:D11)","v":1577.4749999999999},null,"Supervisor",2,1569.9749999999999,1500,3139.95,3000]
[null,null,null,null,null,"Personal de Limpieza",5,1569.9749999999999,1500,7849.875,7500]
[null,"AFP",null,null,null,"Personal de Jardinería",1,1569.9749999999999,1500,1569.9749999999999,1500]
[null,"Aporte Obligatorio:",0.1,{"$f":"$C$7*C15","v":150},null,null,null,null,"Costo Mensual",{"$f":"SUM(J9:J14)","v":26689.574999999997},{"$f":"SUM(K9:K14)","v":25500}]
["Comisiones","Integra",{"$f":"INDEX(AFP[],MATCH(B16,AFP[AFP],0),4)","v":2.3300000000000001E-2},{"$f":"$C$7*C16","v":34.950000000000003}]
[null,null,"Descuento mensual",{"$f":"SUM(D15:D16)","v":184.95},null,null,null,null,"Utilidad Bruta:",{"$f":"$G$6-J15","v":7810.4250000000029},{"$f":"$G$6-K15","v":9000}]
[null,null,null,null,null,"Impuestos de Cotización",null,null,"Utilidad Neta:",{"$f":"J17-$G$21","v":2109.1538135593255},{"$f":"K17-$G$21","v":3298.7288135593226}]
[null,null,"Sueldo neto Mensual",{"$f":"C7-D17","v":1315.05},null,"IGV",{"$f":"H6*18%","v":5262.7118644067796}]
[null,null,"Sueldo Quincenal",{"$f":"D19/2","v":657.52499999999998},null,"Renta",{"$f":"H6*1.5%","v":438.5593220338983}]
[null,null,null,null,null,"Total impuesto por factura",{"$f":"SUM(G19:G20)","v":5701.2711864406774}]
["AFP","Comisión Anual sobre Saldo","Comisión sobre Flujo","Total comicion"]
["Habitat",1.2500000000000001E-2,1.47E-2,{"$f":"SUM(AFP[[#This Row],[Comisión Anual sobre Saldo]:[Comisión sobre Flujo]])","v":2.7200000000000002E-2}]
["Integra",7.7999999999999996E-3,1.55E-2,{"$f":"SUM(AFP[[#This Row],[Comisión Anual sobre Saldo]:[Comisión sobre Flujo]])","v":2.3300000000000001E-2}]
["Prima",1.2500000000000001E-2,1.6E-2,{"$f":"SUM(AFP[[#This Row],[Comisión Anual sobre Saldo]:[Comisión sobre Flujo]])","v":2.8500000000000001E-2}]
["Profuturo",1.2E-2,1.6899999999999998E-2,{"$f":"SUM(AFP[[#This Row],[Comisión Anual sobre Saldo]:[Comisión sobre Flujo]])","v":2.8899999999999999E-2}]

{"sheet":"MSHEETS","index":1,"n_rows":0,"n_cols":0,"rows_kept":0,"cut":false,"hidden":false,"merged":[]}

{"sheet":"FORMULARIOS","index":2,"n_rows":28,"n_cols":41,"rows_kept":28,"cut":false,"hidden":true,"merged":[]}
["-","-","-","COLUMNA",null,null,null,null,null,null,null,null,null,null,null,null,null,null,null,null,"encabesado","columna",null,"encabesado","columna",null,null,null,null,null,null,null,null,null,null,null,null,null,"DETALLE","CONTROL","COLUMNA"]
["ID","TextBox27",1,"A",null,"ID Interacción","TextBox27","A",null,"Departamento","A",null,"ID_Cotización","TextBox34",null,null,null,null,null,null,"ID_Cotización","A",null,"ID_Detalle","A",null,null,null,null,null,null,null,null,"ID_Cotización","A","ID_Cliente","A",null,"ID_Artículo","TextBox4","A"]
["Tipo de Doc","ComboBox2",null,"B",null,"ID Cliente","TextBox28","B",null,"Provincia","B",null,"Fecha_Cotización",null,null,null,null,null,null,null,"Fecha_Cotización","B",null,"ID_Cotización","B",null,"ENCABESADO","COLUMNA",null,null,null,null,null,"Fecha_Cotización","B","Tipo de Doc","B",null,"Cod_Interno","TextBox1","B"]
["N° de Doc","TextBox12",null,"C","TextBox14","Fecha de la acción","TextBox29","C",null,"Distrito","C",null,"ID_Cliente","TextBox35",null,null,null,null,null,null,"ID_Cliente","C",null,"ID_Artículo","C",null,"Ítem","C",null,null,null,null,null,"ID_Cliente","C","N° de Doc","C",null,"Descripcion","TextBox3","C"]
["Razón Social","TextBox1",1,"D","TextBox13","Tipo de acción","ComboBox2","D",null,null,null,null,"N° de Doc","TextBox14",null,null,null,"ID_Artículo","A",null,"Moneda","D",null,"Detalle_Producto","D",null,"Código","D",null,null,null,null,null,"Estado_Cotización","I","Razón Social","D",null,"Tipo","ComboBox5","D"]
["Nombre Comercial","TextBox2",1,"E",null,"Motivo de la acción","ComboBox3","E",null,null,null,null,"Razón Social","TextBox13",null,null,null,"Cod_Interno","B",null,"IGV_Aplica","E",null,"Cantidad","E",null,"Descripción","E",null,null,null,null,null,"Total","J","Nombre Comercial","E",null,"Marca","ComboBox6","E"]
["Dirección","TextBox14",null,"F","TextBox16","Producto o servicio","TextBox22","F",null,null,null,null,"Dirección","TextBox16",null,null,null,"Descripcion","C",null,"Forma_Pago","F",null,"Precio Unitario","F",null,"UM","F",null,null,null,null,null,null,null,"Dirección","F",null,"Unidad de medida","ComboBox4","F"]
["Coordenadas","TextBox13",null,"G",null,"Descripción breve","TextBox17","G",null,null,null,null,"Nombre","TextBox15","K",null,null,"Tipo","D",null,"Garantía","G",null,"Total parcial","G",null,"Cantidad","G",null,null,null,null,null,null,null,"Coordenadas","G",null,"Precio_Sugerido","TextBox33","G"]
["Departamento","TextBox15",1,"H",null,"Responsable","ComboBox4","H",null,null,null,null,"Número","TextBox18","N",null,null,"Marca","E",null,"Entrega","H",null,null,null,null,"Precio Unitario","H",null,null,null,null,null,null,null,"Departamento","H"]
["Provincia","TextBox17",null,"I",null,"Resultado","ComboBox5","I",null,null,null,null,null,null,null,null,null,"Unidad de medida","F",null,"Estado_Cotización","I",null,null,null,null,"Total","I",null,null,null,null,null,null,null,"Provincia","I"]
["Distrito","TextBox18",null,"J",null,null,null,null,null,null,null,null,null,null,null,null,null,"Precio_Sugerido","G",null,null,null,null,null,null,null,null,null,null,null,null,null,null,null,null,"Distrito","J"]
["Nombre","TextBox22",1,"K","TextBox15",null,null,null,null,null,null,null,null,null,null,null,null,null,null,null,null,null,null,null,null,null,null,null,null,null,null,null,null,null,null,"Nombre","K"]
["Cargo","TextBox21",1,"L",null,null,null,null,null,null,null,null,"Moneda","ComboBox3",null,null,null,null,null,null,null,null,null,null,null,null,null,null,null,null,null,null,null,null,null,"Cargo","L"]
["Codigo","TextBox24",null,"M",null,null,null,null,null,null,null,null,"IGV_Aplica","ComboBox7",null,null,null,null,null,null,null,null,null,null,null,null,null,null,null,null,null,null,null,null,null,"Codigo","M"]
["Número","TextBox25",null,"N","TextBox18",null,null,null,null,null,null,null,"Forma_Pago","ComboBox5",null,null,null,null,null,null,null,null,null,null,null,null,null,null,null,null,null,null,null,null,null,"Número","N"]
["Fijo","TextBox28",null,"O",null,null,null,null,null,null,null,null,"Garantía","ComboBox4",null,null,null,null,null,null,null,null,null,null,null,null,null,null,null,null,null,null,null,null,null,"Fijo","O"]
["Correo","TextBox6",null,"P",null,null,null,null,null,null,null,null,"Entrega","ComboBox6",null,null,null,null,null,null,null,null,null,null,null,null,null,null,null,null,null,null,null,null,null,"Correo","P"]
["OBS","TextBox29",null,"Q",null,null,null,null,null,null,null,null,"Estado_Cotización",null,null,null,null,null,null,null,null,null,null,null,null,null,null,null,null,null,null,null,null,null,null,"OBS","Q"]
["Tipo de Cliente","ComboBox3",null,"R",null,null,null,null,null,null,null,null,null,null,null,null,null,null,null,null,null,null,null,null,null,null,null,null,null,null,null,null,null,null,null,"Tipo de Cliente","R"]
["Rubro","ComboBox4",null,"S",null,null,null,null,null,null,null,null,null,null,null,null,null,null,null,null,null,null,null,null,null,null,null,null,null,null,null,null,null,null,null,"Rubro","S"]
["Tamaño","ComboBox5",null,"T",null,null,null,null,null,null,null,null,null,null,null,null,null,null,null,null,null,null,null,null,null,null,null,null,null,null,null,null,null,null,null,"Tamaño","T"]
["Estado","ComboBox6",1,"U",null,null,null,null,null,null,null,null,null,null,null,null,null,null,null,null,null,null,null,null,null,null,null,null,null,null,null,null,null,null,null,"Estado","U"]
["Web","TextBox7",null,"V",null,null,null,null,null,null,null,null,null,null,null,null,null,null,null,null,null,null,null,null,null,null,null,null,null,null,null,null,null,null,null,"Web","V"]
["Facebook","TextBox8",null,"W",null,null,null,null,null,null,null,null,null,null,null,null,null,null,null,null,null,null,null,null,null,null,null,null,null,null,null,null,null,null,null,"Facebook","W"]
["WhatsApp","TextBox10",null,"X",null,null,null,null,null,null,null,null,null,null,null,null,null,null,null,null,null,null,null,null,null,null,null,null,null,null,null,null,null,null,null,"WhatsApp","X"]
["Instagram","TextBox11",null,"Y",null,null,null,null,null,null,null,null,null,null,null,null,null,null,null,null,null,null,null,null,null,null,null,null,null,null,null,null,null,null,null,"Instagram","Y"]
["TikTok","TextBox20",null,"Z",null,null,null,null,null,null,null,null,null,null,null,null,null,null,null,null,null,null,null,null,null,null,null,null,null,null,null,null,null,null,null,"TikTok","Z"]
["LinkedIn","TextBox9",null,"AA",null,null,null,null,null,null,null,null,null,null,null,null,null,null,null,null,null,null,null,null,null,null,null,null,null,null,null,null,null,null,null,"LinkedIn","AA"]

{"sheet":"COTIZACION","index":3,"n_rows":32,"n_cols":9,"rows_kept":32,"cut":false,"hidden":true,"merged":[]}
[]
[]
[null,null,null,"Razón Social:",{"$f":"RazonSocial","v":"PATRULLA 105 SEGURITY S.A.C."},null,null,"Cotización"]
[null,null,null,"Ruc:",{"$f":"Ruc","v":20613967762},null,null,"Fecha:",{"$f":"IFERROR(IF(I5=\"\",\"\",INDEX(tbl_Cotizaciones[],MATCH(I5,tbl_Cotizaciones[ID_Cotización],0),2)),\"\")","v":45744}]
[null,null,null,"Dirección:",{"$f":"DiereccionFiscal","v":"URB. LAS PALMAS PACHACAMAC"},null,null,"N° cotización:",581]
[]
[null,null,null,null,null,null,null,"Cotización válida hasta:"]
[null,null,"Cliente:","-",null,null,null,null,{"$f":"IFERROR(I4+7,\"\")","v":45751}]
[null,null,"DNI / Ruc:",10000000009]
[null,null,"Dirección:","-"]
[null,null,"Atención:","Jacqueline Manrique"]
[null,null,"Teléfono:",955319977]
[]
[null,null,"Ítem","Código","Descripción","UM","Cantidad","Precio Unitario","Total"]
[null,null,1,"ADMIN","Administrador","SRV",1,3750,3750]
[null,null,2,"SGR","Personal de Vigilancia","SRV",6,1890,11340]
[null,null,3,"SGRDSC","Personal de Vigilancia de Descanso","SRV",2,1890,3780]
[null,null,4,"SPRV","Supervisor","SRV",2,2100,4200]
[null,null,5,"PLPZ","Personal de Limpieza","SRV",5,1610,8050]
[null,null,6,"PJRD","Personal de Jardinería","SRV",1,2100,2100]
[null,null,7,"MKT","Servicio de Marketing y Publicidad\r\nINCLUYE:\r\n- Campañas publicitarias para Captar nuevos Arrendatarios/Propietarios","SRV",1,8.4699999999999998E-2,8.4699999999999998E-2]
[]
[]
[]
[]
[]
[]
[null,null,null,null,null,null,null,"Sub total:",{"$f":"SUM(I15:I27)","v":33220.084699999999}]
[null,null,null,"Moneda:","Soles (PEN)",null,null,"IGV 18%:",5979.62]
[null,null,null,"Garantia:","-",null,null,"TOTAL:",{"$f":"SUM(I28:I29)","v":39199.704700000002}]
[null,null,null,"Forma de Pago:","Contado"]
[null,null,null,"Entrega:","Entrega inmediata"]

{"sheet":"REGISTRO COTIZACIONES","index":4,"n_rows":7,"n_cols":10,"rows_kept":7,"cut":false,"hidden":true,"merged":[]}
[]
["ID_Cotización","Fecha_Cotización","ID_Cliente","Moneda","IGV_Aplica","Forma_Pago","Garantía","Entrega","Estado_Cotización","Total"]
[577,45736,75,"Soles (PEN)","SI","Contado","-","Entrega inmediata","Pendiente",{"$f":"IF(tbl_Cotizaciones[[#This Row],[IGV_Aplica]]=\"SI\",SUMIFS(tbl_DetalleCotización[Total parcial],tbl_DetalleCotización[ID_Cotización],tbl_Cotizaciones[[#This Row],[ID_Cotización]])*1.18,SUMIFS(tbl_DetalleCotización[Total parcial],tbl_DetalleCotización[ID_Cotización],tbl_Cotizaciones[[#This Row],[ID_Cotización]]))","v":249.99999199999996}]
[578,45740,2,"Soles (PEN)","NO","Contado","-","Entrega inmediata","Pendiente",{"$f":"IF(tbl_Cotizaciones[[#This Row],[IGV_Aplica]]=\"SI\",SUMIFS(tbl_DetalleCotización[Total parcial],tbl_DetalleCotización[ID_Cotización],tbl_Cotizaciones[[#This Row],[ID_Cotización]])*1.18,SUMIFS(tbl_DetalleCotización[Total parcial],tbl_DetalleCotización[ID_Cotización],tbl_Cotizaciones[[#This Row],[ID_Cotización]]))","v":10800}]
[579,45744,13,"Soles (PEN)","NO","Contado","-","Entrega inmediata","Pendiente",{"$f":"IF(tbl_Cotizaciones[[#This Row],[IGV_Aplica]]=\"SI\",SUMIFS(tbl_DetalleCotización[Total parcial],tbl_DetalleCotización[ID_Cotización],tbl_Cotizaciones[[#This Row],[ID_Cotización]])*1.18,SUMIFS(tbl_DetalleCotización[Total parcial],tbl_DetalleCotización[ID_Cotización],tbl_Cotizaciones[[#This Row],[ID_Cotización]]))","v":33220}]
[580,45744,13,"Soles (PEN)","SI","Contado","-","Entrega inmediata","Pendiente",{"$f":"IF(tbl_Cotizaciones[[#This Row],[IGV_Aplica]]=\"SI\",SUMIFS(tbl_DetalleCotización[Total parcial],tbl_DetalleCotización[ID_Cotización],tbl_Cotizaciones[[#This Row],[ID_Cotización]])*1.18,SUMIFS(tbl_DetalleCotización[Total parcial],tbl_DetalleCotización[ID_Cotización],tbl_Cotizaciones[[#This Row],[ID_Cotización]]))","v":39199.599999999999}]
[581,45744,13,"Soles (PEN)","SI","Contado","-","Entrega inmediata","Pendiente",{"$f":"IF(tbl_Cotizaciones[[#This Row],[IGV_Aplica]]=\"SI\",SUMIFS(tbl_DetalleCotización[Total parcial],tbl_DetalleCotización[ID_Cotización],tbl_Cotizaciones[[#This Row],[ID_Cotización]])*1.18,SUMIFS(tbl_DetalleCotización[Total parcial],tbl_DetalleCotización[ID_Cotización],tbl_Cotizaciones[[#This Row],[ID_Cotización]]))","v":39199.699946000001}]

{"sheet":"DETALLE COTIZACIONES","index":5,"n_rows":30,"n_cols":7,"rows_kept":30,"cut":false,"hidden":true,"merged":[]}
[]
["ID_Detalle","ID_Cotización","ID_Artículo","Detalle_Producto","Cantidad","Precio Unitario","Total parcial"]
[13,577,1,"Marketing Digital (paquete Despegue)",1,211.86439999999999,211.86439999999999]
[14,578,1,"Administrador",1,2400,2400]
[15,578,2,"Conserje Diurno",1,2100,2100]
[16,578,3,"Conserje Nocturno",1,2100,2100]
[17,578,4,"Conserje de Descanso",1,1100,1100]
[18,578,5,"Personal de Limpieza",1,1500,1500]
[19,578,6,"Personal de Limpieza de Descanso",1,600,600]
[20,578,7,"Personal de Jardinería",1,300,300]
[21,578,8,"Gastos Contables",1,700,700]
[22,579,1,"Administrador",1,3750,3750]
[23,579,9,"Personal de Vigilancia",6,1890,11340]
[24,579,10,"Personal de Vigilancia de Descanso",2,1890,3780]
[25,579,11,"Supervisor",2,2100,4200]
[26,579,5,"Personal de Limpieza",5,1610,8050]
[27,579,7,"Personal de Jardinería",1,2100,2100]
[28,580,1,"Administrador",1,3750,3750]
[29,580,9,"Personal de Vigilancia",6,1890,11340]
[30,580,10,"Personal de Vigilancia de Descanso",2,1890,3780]
[31,580,11,"Supervisor",2,2100,4200]
[32,580,5,"Personal de Limpieza",5,1610,8050]
[33,580,7,"Personal de Jardinería",1,2100,2100]
[34,581,1,"Administrador",1,3750,3750]
[35,581,9,"Personal de Vigilancia",6,1890,11340]
[36,581,10,"Personal de Vigilancia de Descanso",2,1890,3780]
[37,581,11,"Supervisor",2,2100,4200]
[38,581,5,"Personal de Limpieza",5,1610,8050]
[39,581,7,"Personal de Jardinería",1,2100,2100]
[40,581,12,"Servicio de Marketing y Publicidad\r\nINCLUYE:\r\n- Campañas publicitarias para Captar nuevos Arrendatarios/Propietarios",1,8.4699999999999998E-2,8.4699999999999998E-2]

{"sheet":"PRODUCTOS","index":6,"n_rows":14,"n_cols":7,"rows_kept":14,"cut":false,"hidden":true,"merged":[]}
[]
["ID_Artículo","Cod_Interno","Descripcion","Tipo","Marca","Unidad de medida","Precio_Sugerido"]
[1,"ADMIN","Administrador","Servico","-","SRV",2832]
[2,"CNSJD","Conserje Diurno","Servico","-","SRV",2478]
[3,"CNSJN","Conserje Nocturno","Servico","-","SRV",2478]
[4,"CNSJDSC","Conserje de Descanso","Servico","-","SRV",1298]
[5,"PLPZ","Personal de Limpieza","Servico","-","SRV",1770]
[6,"PLPZDSC","Personal de Limpieza de Descanso","Servico","-","SRV",708]
[7,"PJRD","Personal de Jardinería","Servico","-","SRV",354]
[8,"GCTB","Gastos Contables","Servico","-","SRV",826]
[9,"SGR","Personal de Vigilancia","Servico","-","SRV",1770]
[10,"SGRDSC","Personal de Vigilancia de Descanso","Servico","-","SRV",1770]
[11,"SPRV","Supervisor","Servico","-","SRV",1800]
[12,"MKT","Servicio de Marketing y Publicidad","Servico","-","SRV",1500]

{"sheet":"CLIENTES","index":7,"n_rows":13,"n_cols":30,"rows_kept":13,"cut":false,"hidden":true,"merged":[]}
[]
["ID","Tipo de Doc","N° de Doc","Razón Social","Nombre Comercial","Dirección","Coordenadas","Departamento","Provincia","Distrito","Nombre","Cargo","Codigo","Número","Fijo","Correo","OBS","Tipo de Cliente","Rubro","Tamaño","Estado","Web","Facebook","WhatsApp","Instagram","TikTok","LinkedIn","Ultimo Seguimiento","Dias de seguimiento","Tarea"]
[3,"RUC",20605319948,"JUNTA DE PROPIETARIOS DEL CONDOMINIO PASEO DEL PARQUE","CONDOMINIO PASEO DEL PARQUE","JR. UNIVERSO N° 291 LA CAMPIÑA",null,"Lima","Lima","Chorrillos","ANDRES CAMARENA","PROPIETARIO",51,991578563,"-","-",null,"Cliente final","Edificios y condominios","Microempresa","Primer Contacto",null,"https://www.facebook.com/p/Condominio-Paseo-del-Parque-100063931064710/?profile_tab_item_selected=mentions&_rdr","https://wa.me/51991578563",null,null,null,{"$f":"IFERROR(\n    _xlfn.AGGREGATE(\n        14,\n        6,\n        (tbl_Seguimiento[Fecha de la acción]) / (tbl_Seguimiento[ID Cliente] = tbl_Clientes[[#This Row],[ID]]),\n        1\n    ),\n    \"No hay seguimientos\"\n)","v":45741},{"$f":"IFERROR(TODAY()-tbl_Clientes[[#This Row],[Ultimo Seguimiento]],\"No hay seguimientos\")","v":3},"LISTO"]
[4,"RUC",20611535369,"JUNTA DE PROPIETARIOS DEL EDIFICIO START","EDIFICIO START","JULIAN SANDOVAL NRO. 155 INT. SSGG URB. DEL BARRIO MEDICO LIMA - LIMA - SURQUILLO",null,"Lima","Lima","Surquillo","NATALY MORALES","ADMINISTRADORA",51,944445811,null,"-",null,"Cliente final","Edificios y condominios","Microempresa","Prospección",null,null,"https://wa.me/51944445811",null,null,null,{"$f":"IFERROR(\n    _xlfn.AGGREGATE(\n        14,\n        6,\n        (tbl_Seguimiento[Fecha de la acción]) / (tbl_Seguimiento[ID Cliente] = tbl_Clientes[[#This Row],[ID]]),\n        1\n    ),\n    \"No hay seguimientos\"\n)","v":45740},{"$f":"IFERROR(TODAY()-tbl_Clientes[[#This Row],[Ultimo Seguimiento]],\"No hay seguimientos\")","v":4},"LISTO"]
[5,"RUC",10000000001,"-","KAROLINE PRESIDENTA PQ 1","-",null,"Lima","Lima","Santiago de Surco","KAROLINE","PRESIDENTA",51,984788272,null,"-",null,"Cliente final","Edificios y condominios","Microempresa","Prospección",null,null,"https://wa.me/51984788272",null,null,null,{"$f":"IFERROR(\n    _xlfn.AGGREGATE(\n        14,\n        6,\n        (tbl_Seguimiento[Fecha de la acción]) / (tbl_Seguimiento[ID Cliente] = tbl_Clientes[[#This Row],[ID]]),\n        1\n    ),\n    \"No hay seguimientos\"\n)","v":45742},{"$f":"IFERROR(TODAY()-tbl_Clientes[[#This Row],[Ultimo Seguimiento]],\"No hay seguimientos\")","v":2},"LISTO"]
[6,"RUC",10000000002,"-","PRESIDENTA EDIFICIO SAUCE","-",null,"Lima","Lima","Santiago de Surco","-","PRESIDENTA",51,994675075,null,"-",null,"Cliente final","Edificios y condominios","Microempresa","Prospección",null,null,"https://wa.me/51994675075",null,null,null,{"$f":"IFERROR(\n    _xlfn.AGGREGATE(\n        14,\n        6,\n        (tbl_Seguimiento[Fecha de la acción]) / (tbl_Seguimiento[ID Cliente] = tbl_Clientes[[#This Row],[ID]]),\n        1\n    ),\n    \"No hay seguimientos\"\n)","v":45742},{"$f":"IFERROR(TODAY()-tbl_Clientes[[#This Row],[Ultimo Seguimiento]],\"No hay seguimientos\")","v":2},"LISTO"]
[7,"RUC",10000000003,"-","DAYANA PRES. LIBERTADORES","-",null,"Lima","Lima","Santiago de Surco","DAYANA","PRESIDENTA",51,966462507,null,"-",null,"Cliente final","Edificios y condominios","Microempresa","Prospección",null,null,"https://wa.me/51966462507",null,null,null,{"$f":"IFERROR(\n    _xlfn.AGGREGATE(\n        14,\n        6,\n        (tbl_Seguimiento[Fecha de la acción]) / (tbl_Seguimiento[ID Cliente] = tbl_Clientes[[#This Row],[ID]]),\n        1\n    ),\n    \"No hay seguimientos\"\n)","v":45742},{"$f":"IFERROR(TODAY()-tbl_Clientes[[#This Row],[Ultimo Seguimiento]],\"No hay seguimientos\")","v":2},"LISTO"]
[8,"RUC",10000000004,"-","VIVIAN PRESIDENTA ELEKTRA","-",null,"Lima","Lima","Santiago de Surco","VIVIAN","PRESIDENTA",51,993851890,null,"-","condominio electra","Cliente final","Edificios y condominios","Microempresa","Prospección",null,null,"https://wa.me/51993851890",null,null,null,{"$f":"IFERROR(\n    _xlfn.AGGREGATE(\n        14,\n        6,\n        (tbl_Seguimiento[Fecha de la acción]) / (tbl_Seguimiento[ID Cliente] = tbl_Clientes[[#This Row],[ID]]),\n        1\n    ),\n    \"No hay seguimientos\"\n)","v":45742},{"$f":"IFERROR(TODAY()-tbl_Clientes[[#This Row],[Ultimo Seguimiento]],\"No hay seguimientos\")","v":2},"LISTO"]
[9,"RUC",10000000005,"-","CINTHIA GUTIÉRREZ","-",null,"Lima","Lima","Santiago de Surco","Cinthia Gutiérrez","PRESIDENTA",51,987783580,null,"-",null,"Cliente final","Edificios y condominios","Microempresa","Prospección",null,null,"https://wa.me/51987783580",null,null,null,{"$f":"IFERROR(\n    _xlfn.AGGREGATE(\n        14,\n        6,\n        (tbl_Seguimiento[Fecha de la acción]) / (tbl_Seguimiento[ID Cliente] = tbl_Clientes[[#This Row],[ID]]),\n        1\n    ),\n    \"No hay seguimientos\"\n)","v":45743},{"$f":"IFERROR(TODAY()-tbl_Clientes[[#This Row],[Ultimo Seguimiento]],\"No hay seguimientos\")","v":1},"LISTO"]
[10,"RUC",10000000006,"-","MARIA PRESIDENTA PQ 2","-",null,"Lima","Lima","Santiago de Surco","Maria","PRESIDENTA",51,964635678,null,"-",null,"Cliente final","Edificios y condominios","Microempresa","Prospección",null,null,"https://wa.me/51964635678",null,null,null,{"$f":"IFERROR(\n    _xlfn.AGGREGATE(\n        14,\n        6,\n        (tbl_Seguimiento[Fecha de la acción]) / (tbl_Seguimiento[ID Cliente] = tbl_Clientes[[#This Row],[ID]]),\n        1\n    ),\n    \"No hay seguimientos\"\n)","v":45743},{"$f":"IFERROR(TODAY()-tbl_Clientes[[#This Row],[Ultimo Seguimiento]],\"No hay seguimientos\")","v":1},"LISTO"]
[11,"RUC",10000000007,"-","RUBÍ PRESIDENTA DE PARQUE 3","-",null,"Lima","Lima","Santiago de Surco","RUBÍ","PRESIDENTA",51,953249251,null,"-",null,"Cliente final","Edificios y condominios","Microempresa","Prospección",null,null,"https://wa.me/51953249251",null,null,null,{"$f":"IFERROR(\n    _xlfn.AGGREGATE(\n        14,\n        6,\n        (tbl_Seguimiento[Fecha de la acción]) / (tbl_Seguimiento[ID Cliente] = tbl_Clientes[[#This Row],[ID]]),\n        1\n    ),\n    \"No hay seguimientos\"\n)","v":45743},{"$f":"IFERROR(TODAY()-tbl_Clientes[[#This Row],[Ultimo Seguimiento]],\"No hay seguimientos\")","v":1},"LISTO"]
[12,"RUC",10000000008,"-","CONDOMINIO PARQUE CENTRAL","-",null,"Lima","Lima","Santiago de Surco","Marianella Julissa","PRESIDENTA",51,998315015,null,"administracion@condominioparquecentral.com","OTROS CONTACTOS: \r\nAdministración Club House 955 931 818 / Presidente Torre E: Miluska Silva 998 871 870 / Vocal de seguridad: José Clinton 922 016 947","Cliente final","Edificios y condominios","Microempresa","Prospección",null,null,"https://wa.me/51998315015",null,null,null,{"$f":"IFERROR(\n    _xlfn.AGGREGATE(\n        14,\n        6,\n        (tbl_Seguimiento[Fecha de la acción]) / (tbl_Seguimiento[ID Cliente] = tbl_Clientes[[#This Row],[ID]]),\n        1\n    ),\n    \"No hay seguimientos\"\n)","v":45744},{"$f":"IFERROR(TODAY()-tbl_Clientes[[#This Row],[Ultimo Seguimiento]],\"No hay seguimientos\")","v":0},"LISTO"]
[13,"RUC",10000000009,"-","CONDOMINIO LA PORTADA DE MONTERRICO","-",null,"Lima","Lima","Santiago de Surco","Jacqueline Manrique","PRESIDENTA",51,955319977,null,"-",null,"Cliente final","Edificios y condominios","Microempresa","Prospección",null,null,"https://wa.me/51955319977",null,null,null,{"$f":"IFERROR(\n    _xlfn.AGGREGATE(\n        14,\n        6,\n        (tbl_Seguimiento[Fecha de la acción]) / (tbl_Seguimiento[ID Cliente] = tbl_Clientes[[#This Row],[ID]]),\n        1\n    ),\n    \"No hay seguimientos\"\n)","v":"No hay seguimientos"},{"$f":"IFERROR(TODAY()-tbl_Clientes[[#This Row],[Ultimo Seguimiento]],\"No hay seguimientos\")","v":"No hay seguimientos"}]

{"sheet":"SEGUIMIENTO","index":8,"n_rows":16,"n_cols":9,"rows_kept":16,"cut":false,"hidden":true,"merged":[]}
[]
["ID Interacción","ID Cliente","Fecha de la acción","Tipo de acción","Motivo de la acción","Producto o servicio","Descripción breve","Responsable","Resultado"]
[1,1,45730,"Llamada","Prospección","Software ERP","Se presentó la empresa y los servicios","ALBERTO MONTELUIS","Interesado"]
[2,3,"18/03/2025","WhatsApp","Seguimiento","Control de condominios",null,"ALBERTO MONTELUIS","Interesado"]
[3,3,"25/03/2025","Visita","Presentación de servicio","Control de condominios","NO ASISTIMOS POR RECOMENDACION DE ELBER","ALBERTO MONTELUIS","No es el tomador de decisiones"]
[4,4,"24/03/2025","WhatsApp","Seguimiento","Control de condominios",null,"ALBERTO MONTELUIS","Interesado"]
[5,5,"26/03/2025","WhatsApp","Prospección","-","enviamos un mensaje de presentacion, y broshure tambien una imagen de contactos","ALBERTO MONTELUIS","Pendiente de respuesta"]
[6,6,"26/03/2025","WhatsApp","Prospección","-","enviamos un mensaje de presentacion, y broshure tambien una imagen de contactos","ALBERTO MONTELUIS","Pendiente de respuesta"]
[7,7,"26/03/2025","WhatsApp","Prospección","-","enviamos un mensaje de presentacion, y broshure tambien una imagen de contactos","ALBERTO MONTELUIS","Pendiente de respuesta"]
[8,8,"26/03/2025","WhatsApp","Prospección","-","enviamos un mensaje de presentacion, y broshure tambien una imagen de contactos","ALBERTO MONTELUIS","Pendiente de respuesta"]
[9,12,"27/03/2025","WhatsApp","Prospección","SERVICIOS","Marianella Ricaldi nos compartiolos contactos de la nueva junta de propietarios","ALBERTO MONTELUIS","Solicita más información"]
[10,12,"27/03/2025","WhatsApp","Seguimiento","Administración","Envie información a todos los contactos, pero solo contesto Jose Clinton: Vocal de Seguridad","ALBERTO MONTELUIS","Interesado"]
[11,9,"27/03/2025","WhatsApp","Prospección","Administración",null,"ALBERTO MONTELUIS","Pendiente de respuesta"]
[12,10,"27/03/2025","WhatsApp","Prospección","Administración",null,"ALBERTO MONTELUIS","Pendiente de respuesta"]
[13,11,"27/03/2025","WhatsApp","Prospección","Administración",null,"ALBERTO MONTELUIS","Pendiente de respuesta"]
[14,12,"28/03/2025","WhatsApp","Seguimiento","Administracion de Condominios","La presidenta Miluska nos pidio información , se recomienda hacer seguimiento en 2 dias","ALBERTO MONTELUIS","Interesado"]

{"sheet":"Parámetros","index":9,"n_rows":23,"n_cols":11,"rows_kept":23,"cut":false,"hidden":true,"merged":[]}
["Contraseña:",2025,"Ingreso rapido:",2025]
[]
["RUC:",20613967762]
["Razón Social:","PATRULLA 105 SEGURITY S.A.C."]
["Dirección:","URB. LAS PALMAS PACHACAMAC"]
[]
["Rubro",null,"Estado",null,"Acciones",null,"Motivos de la Acción",null,"Resultados",null,"Responsable"]
["Edificios y condominios",null,"Prospección",null,"Llamada",null,"Prospección",null,"Interesado",null,"ALBERTO MONTELUIS"]
["Alimentación y Bebidas",null,"Primer Contacto",null,"Email",null,"Requerimiento de información",null,"No interesado",null,"MARYORY ATALAYA"]
["Comercio",null,"Cliente Interesado",null,"WhatsApp",null,"Seguimiento",null,"Solicita más información"]
["Construcción",null,"Cliente Potencial",null,"Videollamada",null,"Presentación de producto",null,"Pendiente de respuesta"]
["Educación",null,"Evaluación",null,"Visita",null,"Presentación de servicio",null,"Cita agendada"]
["Energía",null,"Propuesta",null,"Reunión",null,"Recordatorio",null,"Venta cerrada"]
["Finanzas y Banca",null,"Negociación",null,"Cotización Enviada",null,"Soporte/Incidencia",null,"Cotización enviada"]
["Logística y Transporte",null,"Cierre de Venta",null,"Cierre de Venta",null,"Queja/Reclamo",null,"Requiere seguimiento"]
["Manufactura",null,"Eliminado",null,"Soporte / Consulta",null,"Renovación/Actualización",null,"No es el tomador de decisiones"]
["Marketing y Publicidad",null,null,null,"Capacitación",null,"Fidelización",null," "]
["Restaurante",null,null,null,"Demostración",null,"Encuesta de satisfacción"]
["Salud",null,null,null,"Encuesta de Satisfacción",null,"Otro"]
["Servicios Profesionales",null,null,null,"Otro"]
["Tecnología"]
["Telecomunicaciones"]
["Turismo y Hospitalidad"]

{"sheet":"DATOS_GENERALES","index":10,"n_rows":28,"n_cols":8,"rows_kept":28,"cut":false,"hidden":true,"merged":[]}
["Cliente","BENIGNO ALBERTO MONTELUIS ASPAJO",null,null,"Accesos",null,"Cliente ID:",{"$f":"MAX(tbl_Clientes[ID])+1","v":14}]
["DNI/RUC",75244009,null,null,"MONTELUIS2025",null,"Seguimiento ID:",{"$f":"MAX(tbl_Seguimiento[ID Interacción])+1","v":15}]
["Nombre Corto","ALBERTO MONTELUIS",null,null,{"$f":"Parámetros!B1","v":2025},null,"Cotización:",{"$f":"MAX(tbl_Cotizaciones[ID_Cotización])+1","v":582}]
["N° Comprobante","FC-7000",null,null,null,null,"Producto",{"$f":"MAX(tbl_Productos[ID_Artículo])+1","v":13}]
["Fecha de venta:",45627,null,null,"Dias de Licencia","Licencia:"]
[{"$f":"\"Doc: \"&B4","v":"Doc: FC-7000"},null,null,null,90,{"$f":"\"MS\"&TEXT(MOD(((TODAY() + YEAR(TODAY())*MONTH(TODAY())*DAY(TODAY()))*1234567+98765),10000000000),\"0000000000\")","v":"MS6473978313"}]
["Ultima Modificación",45720]
[null,null,null,null,"Dias Habilitados"]
[null,"Dias",null,null,{"$f":"E6-B11","v":66}]
["Tiempo de venta",{"$f":"TODAY()-B5","v":117},{"$f":"CONCATENATE(DATEDIF(DATE(2024,1,1), DATE(2024,1,1)+B10-1, \"M\"), \" meses y \",\nDATE(2024,1,1)+B10-1 - DATE(YEAR(DATE(2024,1,1)+B10-1), MONTH(DATE(2024,1,1)+B10-1), 1), \" días\")","v":"3 meses y 25 días"}]
["Tiempo de ultima modificación",{"$f":"TODAY()-B7","v":24},{"$f":"CONCATENATE(DATEDIF(DATE(2024,1,1), DATE(2024,1,1)+B11-1, \"M\"), \" meses y \",\nDATE(2024,1,1)+B11-1 - DATE(YEAR(DATE(2024,1,1)+B11-1), MONTH(DATE(2024,1,1)+B11-1), 1), \" días\")","v":"0 meses y 23 días"}]
[]
["id","Inicio","Final",null,{"$f":"INDEX(Saludos[],MATCH(RANDBETWEEN(1,15),Saludos[id],0),2)&\" \"&B3&\" \"&INDEX(Saludos[],MATCH(RANDBETWEEN(1,15),Saludos[id],0),3)","v":"¡Aquí estamos otra vez, ALBERTO MONTELUIS ! Hoy es un buen día para tomar el control de tu dinero."}]
[1,"¡Hola de nuevo,","! Estoy listo/a para ayudarte con tus finanzas."]
[2,"¡Qué gusto verte,","! Vamos a hacer que cada peso cuente."]
[3,"¡Bienvenido/a de vuelta,","! Sigamos avanzando en tu camino financiero."]
[4,"¡Un placer recibirte,","! Hoy es un buen día para tomar el control de tu dinero."]
[5,"¡Aquí estamos otra vez,","! Vamos a revisar tus ingresos y gastos."]
[6,"¡Saludos cordiales,","! Recuerda que el control financiero es clave para el éxito."]
[7,"¡Hey,","! ¿Qué te gustaría analizar hoy?"]
[8,"¡Es un gran día para ti,","! Siempre es buen momento para mejorar tus finanzas."]
[9,"¡Qué alegría verte por aquí,","! Juntos lograremos que tu dinero trabaje para ti."]
[10,"¡Vamos a por ello,","! Un poco de organización y lograrás grandes cambios."]
[11,"¡Manos a la obra,","! Estoy aquí para hacerte la vida más fácil."]
[12,"¡Preparado/a para optimizar tus finanzas,","! Vamos a darle seguimiento a tu progreso financiero."]
[13,"¡Tu asistente financiero dice hola,","! La constancia es la clave del éxito financiero."]
[14,"¡Aquí listo/a para ayudarte,","! Un pequeño ajuste puede hacer una gran diferencia."]
[15,"¡De vuelta al control financiero,","! Vamos a asegurarnos de que cada gasto valga la pena."]

{"sheet":"UBICACIONES","index":11,"n_rows":52,"n_cols":4,"rows_kept":52,"cut":false,"hidden":true,"merged":[]}
[]
["Departamento","Provincia","Distrito","Ubicación Geográfica"]
["Lima","Lima","Lima","Centro"]
["Lima","Lima","Ancón","Centro"]
["Lima","Lima","Ate","Centro"]
["Lima","Lima","Barranco","Centro"]
["Lima","Lima","Breña","Centro"]
["Lima","Lima","Carabayllo","Centro"]
["Lima","Lima","Chaclacayo","Centro"]
["Lima","Lima","Chorrillos","Centro"]
["Lima","Lima","Cieneguilla","Centro"]
["Lima","Lima","Comas","Centro"]
["Lima","Lima","El Agustino","Centro"]
["Lima","Lima","Independencia","Centro"]
["Lima","Lima","Jesús María","Centro"]
["Lima","Lima","La Molina","Centro"]
["Lima","Lima","La Victoria","Centro"]
["Lima","Lima","Lince","Centro"]
["Lima","Lima","Los Olivos","Centro"]
["Lima","Lima","Lurigancho","Centro"]
["Lima","Lima","Lurín","Centro"]
["Lima","Lima","Magdalena del Mar","Centro"]
["Lima","Lima","Pueblo Libre","Centro"]
["Lima","Lima","Miraflores","Centro"]
["Lima","Lima","Pachacámac","Centro"]
["Lima","Lima","Pucusana","Centro"]
["Lima","Lima","Puente Piedra","Centro"]
["Lima","Lima","Punta Hermosa","Centro"]
["Lima","Lima","Punta Negra","Centro"]
["Lima","Lima","Rímac","Centro"]
["Lima","Lima","San Bartolo","Centro"]
["Lima","Lima","San Borja","Centro"]
["Lima","Lima","San Isidro","Centro"]
["Lima","Lima","San Juan de Lurigancho","Centro"]
["Lima","Lima","San Juan de Miraflores","Centro"]
["Lima","Lima","San Luis","Centro"]
["Lima","Lima","San Martín de Porres","Centro"]
["Lima","Lima","San Miguel","Centro"]
["Lima","Lima","Santa Anita","Centro"]
["Lima","Lima","Santa María del Mar","Centro"]
["Lima","Lima","Santa Rosa","Centro"]
["Lima","Lima","Santiago de Surco","Centro"]
["Lima","Lima","Surquillo","Centro"]
["Lima","Lima","Villa El Salvador","Centro"]
["Lima","Lima","Villa María del Triunfo","Centro"]
["Callao","Callao","Callao","Centro"]
["Callao","Callao","Bellavista","Centro"]
["Callao","Callao","Carmen de la Legua Reynoso","Centro"]
["Callao","Callao","La Perla","Centro"]
["Callao","Callao","La Punta","Centro"]
["Callao","Callao","Ventanilla","Centro"]
["Callao","Callao","Mi Perú","Centro"]

{"sheet":"Interfaz","index":12,"n_rows":0,"n_cols":0,"rows_kept":0,"cut":false,"hidden":true,"merged":[]}